bitfinex-derivatives/quotes_ETHF0:USTF0_20250309
["timestamp","ask_amount","ask_price","bid_price","bid_amount"]
[1741541117564,12.87785028,2031.6,2031.5,0.98467]
[1741541118067,16.08565028,2031.6,2031.4,3.595]
[1741541118261,16.08565028,2031.6,2031.0,3.578]
[1741541118560,12.87785028,2031.6,2031.0,3.578]
[1741541118762,16.08565028,2031.6,2031.0,3.578]
[1741541118961,3.2078,2031.5,2031.0,3.578]
[1741541119170,0.00738389,2031.7,2031.1,2.46216]
[1741541119360,0.00738389,2031.7,2031.6,0.98462]
[1741541119669,0.00738389,2031.7,2031.0,6.7858]
[1741541119871,3.2078,2031.8,2031.7,0.98457]
[1741541120163,3.2078,2031.9,2031.6,0.98462]
[1741541120362,3.2078,2031.9,2031.8,0.98452]
[1741541120568,3.2078,2032.2,2032.0,0.98442]
[1741541120765,3.2078,2032.2,2031.5,3.579]
[1741541120964,3.2078,2031.9,2031.5,3.579]
[1741541121467,3.2078,2031.9,2031.6,0.00738389]
[1741541121662,4.19229,2031.9,2031.6,0.00738389]
[1741541121863,3.2078,2031.9,2031.6,0.00738389]
[1741541122169,3.2078,2031.9,2030.9,3.2078]
[1741541122170,7.2078,2031.9,2031.0,3.56]
[1741541122360,4.19245,2031.6,2031.2,0.98478]
[1741541122561,3.2078,2031.6,2031.4,0.98469]
[1741541122771,3.2078,2031.6,2031.0,3.56]
[1741541122974,3.2078,2031.1,2031.0,3.56]
[1741541123266,3.2078,2031.5,2031.0,3.56]
[1741541123568,5.2013,2031.7,2030.8,0.00738389]
[1741541123569,3.2078,2031.1,2030.8,0.00738389]
[1741541123868,0.98496,2030.9,2030.8,0.00738389]
[1741541124071,0.98496,2030.9,2030.1,4.0438]
[1741541124072,0.98499,2030.9,2030.1,4.0438]
[1741541124370,3.2078,2031.0,2030.9,0.98496]
[1741541124767,3.2078,2031.5,2030.7,6.7478]
[1741541124963,3.2078,2031.5,2031.4,0.98471]
[1741541125365,16.19388533,2033.8,2031.3,6.7518]
[1741541125366,3.2078,2032.1,2031.3,6.7518]
[1741541125567,3.2078,2032.1,2032.0,0.98442]
[1741541125876,3.2078,2032.1,2031.4,4.0368]
[1741541126072,3.2078,2031.8,2031.5,0.98464]
[1741541126262,3.2078,2032.1,2031.4,3.544]
[1741541126467,3.2078,2032.1,2031.6,0.98462]
[1741541126766,3.2078,2032.1,2031.5,0.00738389]
[1741541126973,0.98458,2031.7,2031.5,0.00738389]
[1741541127163,0.98462,2031.6,2031.5,0.00738389]
[1741541127362,0.98462,2031.6,2031.2,3.534]
[1741541127363,7.2078,2031.8,2030.9,0.4928]
[1741541127567,3.2078,2031.3,2030.8,26.1248]
[1741541127973,3.2078,2031.7,2030.9,3.2078]
[1741541128178,3.2078,2031.7,2030.9,11.11169141]
[1741541128380,4.1924,2031.7,2031.2,0.98477]
[1741541128675,4.1924,2031.7,2031.3,0.98476]
[1741541128676,0.00738389,2031.5,2031.3,0.98476]
[1741541128870,0.00738389,2031.5,2031.1,0.00738389]
[1741541129276,3.2078,2031.4,2031.1,0.00738389]
[1741541129577,3.2078,2031.4,2031.3,0.98476]
[1741541129978,0.00738389,2031.5,2031.4,0.98471]
[1741541130472,1.52680707,2031.8,2031.2,9.58347252]
[1741541130669,1.52680707,2031.8,2031.3,2.46192]
[1741541130866,3.2078,2032.1,2031.5,3.2078]
[1741541131072,3.2078,2032.1,2031.6,3.526]
[1741541131278,3.2078,2032.5,2031.5,6.7328]
[1741541131576,0.00738389,2032.1,2032.0,0.9844]
[1741541131876,0.00738389,2032.1,2031.5,15.47584563]
[1741541132077,0.00738389,2032.1,2032.0,0.98442]
[1741541133182,0.00738389,2032.1,2032.0,4.49042]
[1741541133479,6.1679,2032.7,2032.1,2.46095]
[1741541133676,6.1679,2032.7,2032.6,0.98413]
[1741541133876,3.2078,2032.8,2032.7,0.98409]
[1741541134178,8.3407,2033.2,2032.5,3.497]
[1741541134384,3.2078,2033.2,2032.6,2.46034]
[1741541134576,6.5596,2033.6,2032.6,2.46034]
[1741541134577,0.0045919,2033.1,2032.8,2.46001]
[1741541134881,0.0045919,2033.1,2033.0,0.98394]
[1741541135075,3.2078,2033.5,2033.0,4.47694]
[1741541135278,3.2078,2033.8,2033.0,4.47694]
[1741541135473,3.2078,2033.8,2033.1,2.45974]
[1741541135672,3.2078,2033.8,2033.2,5.66742]
[1741541135869,5.1329,2033.9,2033.2,3.2078]
[1741541136068,6.11643,2033.9,2033.3,0.492]
[1741541136273,5.1329,2033.9,2033.5,0.98368]
[1741541136473,5.1329,2033.9,2033.2,3.2078]
[1741541136674,5.1329,2033.9,2033.6,0.98362]
[1741541136869,5.1329,2033.9,2033.6,0.9836]
[1741541137172,5.1329,2033.9,2033.3,0.492]
[1741541137376,5.1329,2033.9,2033.7,0.98357]
[1741541137572,3.2078,2034.0,2033.3,2.95143]
[1741541137778,3.2078,2034.0,2033.3,0.492]
[1741541138681,8.1682,2034.6,2033.5,5.66695]
[1741541138980,8.1682,2034.6,2033.8,3.2078]
[1741541139184,3.2078,2034.6,2033.8,25.29818389]
[1741541139483,3.2078,2034.9,2034.6,0.98314]
[1741541139683,3.2078,2035.3,2034.4,7.05078097]
[1741541139978,3.2078,2035.1,2034.4,6.6628]
[1741541140175,3.2078,2035.0,2034.6,0.98316]
[1741541140385,3.2078,2034.7,2034.4,6.6628]
[1741541140773,3.2078,2035.0,2034.4,6.6628]
[1741541140976,0.98305,2034.9,2034.4,7.64605]
[1741541141178,0.98317,2034.6,2034.1,3.2078]
[1741541141383,3.2078,2034.7,2033.8,22.46376849]
[1741541141384,3.2078,2034.4,2033.9,3.442]
[1741541141581,3.2078,2034.1,2033.9,3.442]
[1741541141884,3.2078,2034.2,2033.9,3.442]
[1741541142275,4.19113,2034.3,2033.9,4.4255]
[1741541142788,3.2078,2034.3,2034.2,0.98336]
[1741541143084,3.2078,2034.3,2034.1,0.98338]
[1741541143279,3.2078,2034.3,2033.9,3.442]
[1741541143785,2.985,2035.0,2033.9,3.442]
[1741541143786,3.2078,2034.0,2033.9,3.442]
[1741541144490,0.98355,2033.8,2033.4,0.98372]
[1741541144781,0.98355,2033.8,2032.3,4.92127]
[1741541144782,5.66681,2033.7,2032.6,3.2078]
[1741541144987,3.2078,2033.0,2032.8,0.98401]
[1741541145187,3.2078,2033.0,2032.6,0.98411]
[1741541145391,3.2078,2033.4,2032.4,3.925]
[1741541145687,3.2078,2033.4,2032.7,3.2078]
[1741541145886,0.00738389,2033.0,2032.6,0.00738389]
[1741541146088,0.00738389,2033.0,2032.9,0.98399]
[1741541146387,0.00738389,2033.0,2032.6,0.00738389]
[1741541146880,3.2078,2032.8,2032.6,0.00738389]
[1741541147075,3.2078,2032.8,2032.2,0.492]
[1741541147385,3.2078,2032.5,2031.8,0.4928]
[1741541147580,2.4602,2032.8,2031.6,3.433]
[1741541147581,3.2078,2031.9,2031.6,3.433]
[1741541147782,3.2078,2031.9,2031.7,0.98456]
[1741541147984,3.2078,2031.9,2031.6,3.433]
[1741541148185,7.2078,2031.9,2031.1,0.4928]
[1741541148384,3.2078,2031.5,2030.8,3.2078]
[1741541148585,3.2078,2031.8,2031.4,0.98468]
[1741541148793,3.2078,2031.8,2031.3,0.00738389]
[1741541149387,0.00738389,2032.0,2031.9,0.98447]
[1741541149579,3.2078,2032.5,2031.6,3.2078]
[1741541149782,3.2078,2032.5,2032.1,0.98433]
[1741541149988,3.2078,2032.5,2032.4,0.98423]
[1741541150190,3.2078,2033.0,2032.6,0.98413]
[1741541150389,3.2078,2033.0,2032.4,3.429]
[1741541150786,3.21518389,2033.0,2032.5,0.00738389]
[1741541151784,0.00738389,2033.0,2032.5,0.00738389]
[1741541151989,0.00738389,2033.0,2032.7,0.98406]
[1741541152484,0.00738389,2033.0,2032.6,0.98412]
[1741541152690,0.00738389,2033.0,2032.7,0.98406]
[1741541152993,0.00738389,2033.0,2032.5,0.00738389]
[1741541153291,0.00738389,2033.0,2032.7,0.98407]
[1741541153884,0.00738389,2033.0,2032.6,0.98409]
[1741541154090,3.2078,2032.8,2032.5,0.00738389]
[1741541154483,4.19184,2032.8,2032.5,0.00738389]
[1741541154786,3.2078,2032.8,2032.5,0.00738389]
[1741541155179,0.98413,2032.6,2032.5,0.00738389]
[1741541155383,3.2078,2032.8,2032.5,0.00738389]
[1741541155593,0.98413,2032.6,2032.5,0.00738389]
[1741541155793,3.2078,2032.8,2032.5,0.00738389]
[1741541156290,3.2078,2032.8,2032.7,0.98409]
[1741541156587,0.00738389,2033.0,2032.9,0.98399]
[1741541157892,6.3847,2033.7,2033.0,2.45979]
[1741541158092,6.3847,2033.7,2033.4,0.98375]
[1741541158393,6.3847,2033.7,2033.0,2.45986]
[1741541158592,6.3847,2033.7,2033.1,3.371]
[1741541158795,6.3847,2033.7,2033.5,0.98368]
[1741541159288,6.3847,2033.7,2033.1,3.371]
[1741541159491,3.2078,2033.2,2033.1,3.371]
[1741541159687,3.2078,2033.2,2032.5,5.67554389]
[1741541159688,3.2078,2033.2,2032.7,3.371]
[1741541159885,3.2078,2033.2,2032.9,0.98395]
[1741541160086,3.2078,2033.2,2032.7,3.371]
[1741541160590,3.2078,2033.2,2032.6,22.57]
[1741541160591,3.2078,2033.2,2032.8,0.98402]
[1741541160895,4.19166,2033.2,2032.6,25.449]
[1741541161090,3.2078,2033.2,2032.6,25.449]
[1741541161295,0.98391,2033.1,2032.7,0.98406]
[1741541161496,3.2078,2032.9,2032.6,22.078]
[1741541161793,3.2078,2032.9,2032.8,0.98404]
[1741541162089,5.1817,2033.4,2033.3,0.98379]
[1741541162090,3.2078,2033.4,2033.3,0.98379]
[1741541162687,3.2078,2033.4,2032.9,2.45998]
[1741541162889,3.2078,2033.4,2033.3,0.98379]
[1741541163095,3.2078,2033.8,2033.3,0.98379]
[1741541163296,8.3895,2034.1,2033.8,0.98352]
[1741541163493,5.1817,2034.1,2033.5,0.492]
[1741541163694,5.1817,2034.1,2033.8,0.98354]
[1741541163895,3.2078,2034.1,2033.6,0.00738389]
[1741541164193,3.2078,2033.7,2033.6,0.00738389]
[1741541164501,4.1914,2033.7,2033.6,0.00738389]
[1741541164703,0.98382,2033.3,2032.8,7.0698]
[1741541164896,3.2078,2033.3,2032.6,3.37]
[1741541165097,0.98386,2033.2,2032.9,23.05996]
[1741541165596,15.93336,2033.6,2032.9,24.53593]
[1741541165801,14.9497,2033.6,2032.9,24.53593]
[1741541165997,14.9497,2033.6,2033.0,0.00738389]
[1741541166188,3.2078,2033.2,2033.0,0.00738389]
[1741541166393,3.2078,2033.5,2033.4,0.98375]
[1741541166593,3.2078,2033.5,2033.0,0.00738389]
[1741541167504,3.2078,2033.8,2033.1,2.45974]
[1741541167696,3.2078,2033.8,2033.5,0.98368]
[1741541168005,4.19137,2033.8,2033.5,0.98368]
[1741541168400,3.2078,2033.8,2033.2,2.45962]
[1741541168799,3.2078,2033.8,2033.5,0.98366]
[1741541169001,4.19137,2033.8,2033.5,0.98366]
[1741541169204,3.2078,2033.8,2033.0,0.00738389]
[1741541169390,3.2078,2033.5,2033.4,0.98375]
[1741541169997,3.21518389,2033.9,2033.3,2.45946]
[1741541170200,3.21518389,2033.9,2033.6,0.98362]
[1741541170400,4.19870389,2033.9,2033.5,0.98368]
[1741541170703,4.19871389,2033.9,2033.5,0.98367]
[1741541170904,0.98355,2033.8,2033.1,5.66746]
[1741541171096,4.19871389,2033.9,2033.5,0.98367]
[1741541171295,4.19871389,2033.9,2033.5,0.98366]
[1741541171502,4.19871389,2033.9,2033.1,5.66746]
[1741541171503,3.21518389,2033.9,2033.4,3.37]
[1741541171893,3.21518389,2033.9,2033.6,0.98363]
[1741541172099,3.21518389,2033.9,2033.4,4.35372]
[1741541172401,0.98358,2033.8,2033.4,4.35372]
[1741541172697,0.98358,2033.8,2032.9,30.87493]
[1741541172698,2.45937,2033.4,2032.2,3.862]
[1741541172902,3.2078,2032.9,2032.7,0.98406]
[1741541173099,0.984,2032.9,2032.5,0.98415]
[1741541173299,0.9841,2032.7,2032.3,6.37782406]
[1741541173502,4.19179,2032.9,2032.6,0.98413]
[1741541173702,4.19179,2032.9,2032.2,3.862]
[1741541173703,3.2078,2032.9,2032.2,3.862]
[1741541173899,3.2078,2032.9,2032.7,0.98408]
[1741541174207,3.2078,2032.9,2032.6,0.9841]
[1741541174599,3.2078,2032.9,2032.8,0.98404]
[1741541174794,3.2078,2032.9,2032.5,0.00738389]
[1741541175005,0.00738389,2033.0,2032.7,0.98408]
[1741541175308,0.00738389,2033.0,2032.5,0.00738389]
[1741541175309,0.98407,2032.8,2032.5,0.00738389]
[1741541175514,0.00738389,2033.0,2032.5,0.00738389]
[1741541175515,3.2078,2032.6,2032.5,0.00738389]
[1741541175694,3.2078,2032.6,2032.1,22.563]
[1741541175695,3.2078,2032.6,2032.1,0.492]
[1741541176002,3.2078,2032.3,2031.7,3.8628]
[1741541176193,2.46028,2032.7,2031.8,0.98448]
[1741541176194,3.2078,2032.0,2031.8,0.98448]
[1741541176392,6.355,2032.9,2031.7,3.37]
[1741541176393,3.2078,2032.4,2031.7,3.37]
[1741541176600,3.2078,2032.4,2031.7,6.32418]
[1741541176800,3.2078,2032.1,2031.8,0.9845]
[1741541177001,3.2078,2032.1,2031.8,0.00738389]
[1741541177206,0.98449,2031.9,2031.8,0.00738389]
[1741541177397,3.37,2031.9,2030.5,3.2078]
[1741541177606,3.2078,2031.3,2030.6,2.46276]
[1741541177804,3.2078,2031.0,2030.5,3.2078]
[1741541178106,0.98502,2030.8,2030.4,0.98515]
[1741541178404,0.98496,2030.9,2030.5,0.98513]
[1741541178606,0.00738389,2030.8,2030.7,0.98505]
[1741541179511,0.00738389,2030.8,2030.7,1.47785]
[1741541180209,3.2078,2031.3,2030.8,0.98499]
[1741541180507,0.98485,2031.2,2030.7,0.4928]
[1741541180811,0.98485,2031.2,2030.7,0.98505]
[1741541181007,4.19259,2031.3,2030.8,0.985]
[1741541181202,4.19259,2031.3,2030.6,3.2078]
[1741541181203,0.00738389,2031.2,2031.1,0.98486]
[1741541181505,0.00738389,2031.2,2030.6,3.2078]
[1741541181701,0.00738389,2031.2,2031.1,0.98486]
[1741541182106,3.2078,2031.6,2030.8,5.83352]
[1741541182306,3.2078,2031.6,2031.5,0.98467]
[1741541182504,4.19208,2032.3,2031.9,0.98446]
[1741541182706,4.19208,2032.3,2031.3,3.371]
[1741541182707,3.2078,2032.3,2031.3,3.371]
[1741541182903,0.98444,2032.0,2031.3,3.371]
[1741541183107,0.98457,2031.7,2031.3,4.35575]
[1741541183312,0.98454,2031.8,2031.4,0.99207389]
[1741541183510,0.00738389,2031.9,2031.4,0.00738389]
[1741541183707,0.00738389,2031.9,2031.8,0.98452]
[1741541184105,3.2078,2032.3,2031.8,5.8323]
[1741541184305,0.98435,2032.2,2031.8,3.371]
[1741541184505,4.19211,2032.3,2031.9,0.98447]
[1741541184717,4.19211,2032.3,2031.8,3.371]
[1741541184718,0.98445,2032.0,2031.8,3.371]
[1741541185009,3.2078,2032.0,2031.5,3.2078]
[1741541185216,3.2078,2032.0,2031.6,0.98458]
[1741541185808,0.98449,2031.9,2031.4,9.62287389]
[1741541186016,3.2078,2032.0,2031.4,3.37838389]
[1741541186204,3.2078,2031.7,2031.4,4.36306389]
[1741541186406,3.2078,2031.7,2031.4,3.37838389]
[1741541186607,3.2078,2031.7,2031.5,0.98463]
[1741541186808,3.2078,2031.7,2031.4,0.00738389]
[1741541187109,0.98467,2031.5,2031.4,0.00738389]
[1741541187308,3.2078,2031.7,2031.4,0.00738389]
[1741541187515,0.98463,2031.6,2031.4,0.00738389]
[1741541187713,3.2078,2031.7,2031.4,0.00738389]
[1741541187915,3.2078,2031.7,2031.5,0.98463]
[1741541188115,4.1924,2031.7,2031.4,0.99209389]
[1741541188306,4.1924,2031.7,2031.4,0.00738389]
[1741541188617,4.19238,2031.7,2031.5,0.98466]
[1741541188817,0.98463,2031.6,2031.4,0.99209389]
[1741541189114,0.98467,2031.5,2031.4,0.00738389]
[1741541189413,3.2078,2031.7,2031.4,0.00738389]
[1741541189612,3.2078,2031.7,2031.5,0.98462]
[1741541189810,3.2078,2031.7,2031.6,0.98462]
[1741541190010,3.2078,2031.7,2031.4,0.00738389]
[1741541190211,2.985,2031.9,2031.8,0.98452]
[1741541190713,2.985,2031.9,2031.4,0.00738389]
[1741541191018,3.2078,2031.7,2031.4,0.00738389]
[1741541191321,0.98467,2031.5,2031.4,0.00738389]
[1741541191514,3.2078,2031.7,2031.4,0.00738389]
[1741541192310,0.98464,2031.6,2031.4,0.00738389]
[1741541192613,3.2078,2031.7,2031.4,0.00738389]
[1741541193321,3.2078,2031.7,2031.6,0.98462]
[1741541193612,0.98457,2031.7,2031.4,0.00738389]
[1741541193812,3.2078,2031.7,2031.5,0.98464]
[1741541194013,3.2078,2031.7,2031.4,0.00738389]
[1741541194818,0.98463,2031.6,2031.4,0.00738389]
[1741541195011,3.2078,2031.7,2031.4,0.00738389]
[1741541195518,3.2078,2031.7,2031.6,0.98462]
[1741541195718,4.19238,2031.7,2031.4,0.99208389]
[1741541196012,0.98467,2031.5,2031.4,0.00738389]
[1741541196218,10.5788,2031.7,2030.6,0.98509]
[1741541196418,4.19289,2030.7,2030.5,0.98515]
[1741541196625,0.98496,2030.9,2030.3,2.46313]
[1741541196917,0.98496,2030.9,2030.7,0.98504]
[1741541197119,3.2078,2031.0,2030.7,0.98504]
[1741541197318,3.2078,2031.0,2030.2,3.2078]
[1741541197511,3.2078,2030.7,2030.2,3.2078]
[1741541197712,0.98515,2030.5,2030.4,0.00738389]
[1741541197911,0.98531,2030.2,2030.0,0.98538]
[1741541198120,3.2078,2030.2,2030.1,0.98535]
[1741541198318,8.95405,2030.7,2030.5,0.98514]
[1741541198514,3.2078,2030.8,2030.0,2.46347]
[1741541198714,4.19285,2030.8,2030.5,0.98512]
[1741541198913,0.98506,2030.7,2030.5,0.98512]
[1741541199114,3.2078,2030.8,2030.4,0.00738389]
[1741541199513,3.2078,2030.8,2030.5,0.98514]
[1741541199822,3.2078,2030.8,2030.4,0.00738389]
[1741541200218,4.19283,2030.8,2030.5,0.98512]
[1741541200412,4.19283,2030.8,2030.4,0.00738389]
[1741541200720,3.2078,2030.8,2030.7,0.98505]
[1741541200915,3.2078,2030.8,2030.4,0.00738389]
[1741541201117,3.2078,2030.8,2030.4,0.99256389]
[1741541201318,0.98509,2030.7,2030.4,0.99256389]
[1741541201521,0.98509,2030.7,2030.5,0.98515]
[1741541201723,3.2078,2030.8,2030.6,0.98507]
[1741541202123,3.2078,2030.8,2030.4,0.00738389]
[1741541202325,4.19283,2030.8,2030.5,0.98512]
[1741541202623,3.2078,2030.8,2030.7,0.98505]
[1741541202819,0.00738389,2031.0,2030.8,0.98498]
[1741541203025,0.00738389,2031.0,2030.9,0.98496]
[1741541203223,6.1928,2031.8,2031.4,0.98471]
[1741541203522,3.371,2031.9,2031.2,0.9848]
[1741541203523,4.19249,2031.5,2031.2,0.9848]
[1741541203825,3.2078,2031.5,2031.2,0.9848]
[1741541204123,4.1925,2031.5,2031.2,0.9848]
[1741541204323,4.1925,2031.5,2031.2,0.98481]
[1741541204525,4.1925,2031.5,2031.0,0.4928]
[1741541204526,0.98473,2031.4,2031.0,0.4928]
[1741541204723,0.98478,2031.3,2031.0,0.4928]
[1741541204918,3.2078,2031.2,2030.9,3.371]
[1741541205325,3.2078,2031.2,2030.6,3.2078]
[1741541205620,3.2078,2031.2,2030.7,2.46264]
[1741541205825,0.98474,2031.4,2031.1,0.98486]
[1741541206021,3.2078,2031.5,2030.7,2.46264]
[1741541206220,4.19248,2031.5,2031.2,0.9848]
[1741541206425,0.98474,2031.4,2031.0,0.98486]
[1741541206621,3.2078,2031.5,2031.0,0.98486]
[1741541206923,0.98481,2031.3,2030.6,5.67055]
[1741541207124,3.2078,2031.5,2030.6,3.2078]
[1741541207328,3.2078,2031.2,2030.5,0.4928]
[1741541207626,3.2078,2030.9,2030.4,0.50018389]
[1741541207826,0.98515,2030.5,2030.4,0.00738389]
[1741541208028,4.19295,2030.5,2030.4,0.00738389]
[1741541208227,3.2078,2030.5,2029.7,6.5788]
[1741541208415,3.2078,2030.8,2030.0,3.2078]
[1741541208622,3.2078,2030.8,2030.6,0.98509]
[1741541209119,3.2078,2031.2,2030.3,3.2078]
[1741541209321,0.00738389,2030.7,2030.6,0.98508]
[1741541209725,0.00738389,2030.7,2030.3,3.21518389]
[1741541210329,3.2078,2030.6,2030.3,0.00738389]
[1741541210629,0.00738389,2030.7,2030.3,0.00738389]
[1741541210826,0.00738389,2030.7,2030.4,0.9852]
[1741541211020,0.00738389,2030.7,2030.3,0.00738389]
[1741541211220,0.00738389,2030.7,2030.4,0.98515]
[1741541211419,0.00738389,2030.7,2030.3,0.00738389]
[1741541211728,0.9852,2030.4,2030.3,0.00738389]
[1741541212031,2.46289,2030.5,2029.7,3.2078]
[1741541212329,3.2078,2030.2,2030.1,0.98535]
[1741541212926,3.2078,2030.5,2030.3,0.98523]
[1741541213128,3.2078,2030.5,2030.4,0.9852]
[1741541213323,3.2078,2030.5,2029.9,0.00738389]
[1741541213520,4.19298,2030.5,2030.2,0.98529]
[1741541213715,0.98521,2030.4,2030.1,0.98533]
[1741541214130,0.9853,2030.2,2029.9,0.99279389]
[1741541214428,3.2078,2030.2,2029.9,0.00738389]
[1741541214627,3.2078,2030.2,2030.0,0.98539]
[1741541214825,3.2078,2030.2,2029.9,0.00738389]
[1741541214826,4.19311,2030.2,2029.9,0.99279389]
[1741541215226,3.2078,2030.5,2029.9,0.00738389]
[1741541215424,3.2078,2030.2,2030.1,0.98533]
[1741541215733,0.98512,2030.6,2030.2,0.98528]
[1741541215923,3.2078,2030.6,2029.9,0.00738389]
[1741541216224,0.98524,2030.4,2029.9,0.00738389]
[1741541216431,3.2078,2030.3,2030.1,0.98531]
[1741541216627,0.98518,2030.5,2029.9,0.00738389]
[1741541216827,0.98518,2030.5,2030.2,0.98529]
[1741541217029,3.2078,2030.3,2029.9,0.00738389]
[1741541217230,4.19308,2030.3,2030.0,0.98538]
[1741541217427,3.2078,2030.3,2029.9,0.00738389]
[1741541217621,4.19308,2030.3,2030.0,0.98537]
[1741541217829,4.19308,2030.3,2030.1,0.98534]
[1741541218024,3.2078,2030.3,2029.9,0.00738389]
[1741541218331,0.98554,2029.7,2029.5,0.98562]
[1741541218528,3.2078,2030.0,2029.0,15.2968]
[1741541218529,6.5778,2030.0,2029.0,15.2968]
[1741541218728,3.2078,2029.7,2029.0,3.7006]
[1741541218934,0.9857,2029.4,2029.0,3.7006]
[1741541219240,3.2078,2029.4,2028.8,3.371]
[1741541219534,3.21518389,2029.4,2029.0,0.00738389]
[1741541219732,3.2078,2029.1,2029.0,0.00738389]
[1741541219926,3.2078,2029.1,2029.0,0.99326389]
[1741541220127,3.2078,2029.1,2029.0,0.00738389]
[1741541220735,3.21518389,2029.4,2029.0,0.00738389]
[1741541220930,3.21518389,2029.4,2029.3,0.98573]
[1741541221136,3.21518389,2029.4,2029.0,0.00738389]
[1741541221329,0.98575,2029.3,2029.0,0.00738389]
[1741541221634,3.21518389,2029.4,2029.0,0.00738389]
[1741541221835,0.98576,2029.3,2029.0,0.00738389]
[1741541222031,4.19363,2029.1,2029.0,0.00738389]
[1741541222232,3.2078,2029.1,2028.4,3.2078]
[1741541222637,4.19363,2029.1,2028.7,0.98599]
[1741541223135,3.2078,2029.2,2028.4,3.2078]
[1741541223334,9.6021,2029.3,2028.7,0.00492258]
[1741541223533,3.2078,2028.9,2028.7,0.00492258]
[1741541223733,0.98598,2028.8,2028.7,0.00492258]
[1741541223930,0.98598,2028.8,2027.8,6.4081]
[1741541223931,0.98629,2028.2,2027.9,0.98639]
[1741541224126,0.98629,2028.2,2027.8,3.7014]
[1741541224127,0.98634,2028.1,2027.8,4.19425]
[1741541224433,0.98634,2028.1,2027.4,2.949]
[1741541224434,3.2078,2028.1,2027.4,3.2078]
[1741541224738,0.98641,2028.0,2027.6,0.98653]
[1741541224929,4.19414,2028.1,2027.8,0.98644]
[1741541225130,0.00738389,2028.0,2027.2,27.4506]
[1741541225335,3.2078,2027.5,2026.8,3.2078]
[1741541225735,3.2078,2027.2,2026.8,3.2078]
[1741541226235,2.47337389,2028.0,2027.1,3.2078]
[1741541226236,3.2078,2027.9,2027.1,3.2078]
[1741541226437,0.00738389,2028.0,2027.9,0.98641]
[1741541226940,3.2078,2028.5,2027.9,4.19421]
[1741541227136,3.2078,2028.5,2028.4,0.98617]
[1741541227437,0.98593,2028.9,2028.5,0.9861]
[1741541227639,3.2078,2029.0,2028.5,0.9861]
[1741541227640,14.11904114,2029.0,2028.5,0.98611]
[1741541227834,14.11904114,2029.0,2028.2,3.2078]
[1741541228041,14.11904114,2029.0,2028.7,0.986]
[1741541228342,14.11904114,2029.0,2028.7,0.98603]
[1741541228343,0.00738389,2028.8,2028.7,0.98603]
[1741541228538,0.00738389,2028.8,2028.4,0.00738389]
[1741541229036,0.00738389,2028.8,2028.7,0.98603]
[1741541229236,3.21518389,2028.8,2028.4,0.00738389]
[1741541229546,3.2078,2028.5,2028.4,0.00738389]
[1741541230038,4.19392,2028.5,2028.4,0.00738389]
[1741541230239,3.2078,2028.5,2028.4,0.00738389]
[1741541230537,4.20118389,2028.8,2028.4,0.99355389]
[1741541230743,4.20117389,2028.8,2028.4,0.99353389]
[1741541230937,3.21518389,2028.8,2028.4,0.00738389]
[1741541231137,3.21518389,2028.8,2028.7,0.98603]
[1741541231333,0.00738389,2028.8,2028.7,0.98603]
[1741541231542,3.2078,2029.4,2029.3,0.98573]
[1741541231739,3.2078,2029.8,2029.5,0.98563]
[1741541231939,3.2078,2029.8,2029.4,0.98566]
[1741541232139,3.2078,2029.5,2029.0,0.98586]
[1741541232337,3.2078,2029.5,2028.7,3.2078]
[1741541232645,0.00738389,2029.3,2029.2,0.98578]
[1741541232845,3.2078,2029.9,2029.5,0.98561]
[1741541233044,3.2078,2029.9,2029.7,0.98553]
[1741541233343,3.2078,2029.9,2029.5,0.98561]
[1741541233546,3.2078,2029.9,2029.7,0.98552]
[1741541233740,6.5891,2030.1,2029.8,0.98546]
[1741541233941,6.5891,2030.1,2029.3,3.2078]
[1741541233942,0.99279389,2030.0,2029.3,3.2078]
[1741541234144,3.2078,2029.9,2029.3,3.2078]
[1741541234446,3.2078,2029.9,2029.6,0.98558]
[1741541234635,3.2078,2029.9,2029.0,3.7006]
[1741541234940,3.2078,2029.9,2029.1,3.371]
[1741541235146,3.2078,2029.9,2029.3,3.2078]
[1741541235444,3.2078,2029.9,2029.8,0.98549]
[1741541235835,3.2078,2029.9,2029.4,2.46422]
[1741541235836,0.00738389,2030.0,2029.4,2.46422]
[1741541236032,0.00738389,2030.0,2029.9,0.98544]
[1741541236636,0.00738389,2030.0,2029.6,6.5788]
[1741541236837,3.21518389,2030.0,2029.6,6.5788]
[1741541237053,3.21518389,2030.0,2029.6,3.2078]
[1741541237347,3.21518389,2030.0,2029.8,0.98547]
[1741541237544,4.20061389,2030.0,2029.6,0.98557]
[1741541237740,3.21518389,2030.0,2029.6,0.98557]
[1741541237938,3.21518389,2030.0,2029.4,22.118]
[1741541237939,0.00738389,2030.0,2029.4,22.118]
[1741541238342,0.00738389,2030.0,2029.9,0.98544]
[1741541238642,0.00738389,2030.0,2029.6,3.2078]
[1741541239149,0.00738389,2030.0,2029.9,0.98544]
[1741541239350,0.00738389,2030.0,2029.6,3.2078]
[1741541239948,0.00738389,2030.0,2029.9,0.98544]
[1741541240948,0.00738389,2030.0,2029.6,3.2078]
[1741541241148,0.00738389,2030.0,2029.4,22.118]
[1741541241343,0.00738389,2030.0,2029.7,0.98551]
[1741541241543,0.00738389,2030.0,2029.9,0.98544]
[1741541242346,0.00738389,2030.0,2029.6,3.2078]
[1741541242754,3.2078,2029.9,2029.6,3.2078]
[1741541242956,3.2078,2029.9,2029.7,0.98549]
[1741541243154,3.2078,2029.9,2029.8,0.98549]
[1741541243455,0.00738389,2030.0,2029.9,0.98544]
[1741541244546,0.00738389,2030.0,2029.7,5.3994]
[1741541244752,0.00738389,2030.0,2029.5,2.949]